[Event "Early-Titled-Tuesday-Blitz-July-09-2024"]
[Site "Chess.com"]
[Date "2024.07.09"]
[Round "7"]
[White "Rosh1610"]
[Black "profedechess93"]
[Result "1/2-1/2"]
[WhiteElo "2468"]
[BlackElo "2618"]
[TimeControl "180+1"]
[EndTime "9:21:20 PDT"]
[Termination "Game drawn by stalemate"]

1. e4 {[%clk 0:03:00.9]} 1... e6 {[%clk 0:02:58.2]} 2. d4 {[%clk 0:03:00.3]}
2... d5 {[%clk 0:02:58.8]} 3. exd5 {[%clk 0:03:00.9]} 3... exd5 {[%clk 0:02:59]}
4. Bd3 {[%clk 0:03:00.5]} 4... Nc6 {[%clk 0:02:58.2]} 5. Ne2 {[%clk 0:02:59.9]}
5... Bd6 {[%clk 0:02:57.5]} 6. O-O {[%clk 0:03:00]} 6... Nge7 {[%clk 0:02:58]}
7. Nbc3 {[%clk 0:02:57.4]} 7... a6 {[%clk 0:02:57.3]} 8. Bf4 {[%clk 0:02:57.8]}
8... Bxf4 {[%clk 0:02:22.9]} 9. Nxf4 {[%clk 0:02:58.7]} 9... Nxd4 {[%clk
0:02:23.3]} 10. Bxa6 {[%clk 0:02:57.2]} 10... Nxc2 {[%clk 0:01:39.2]} 11. Bb5+
{[%clk 0:02:52.8]} 11... c6 {[%clk 0:01:39.4]} 12. Qxc2 {[%clk 0:02:51.6]} 12...
cxb5 {[%clk 0:01:39.5]} 13. Rad1 {[%clk 0:02:44.5]} 13... Be6 {[%clk 0:01:27.4]}
14. Nxb5 {[%clk 0:02:36.6]} 14... O-O {[%clk 0:01:20.1]} 15. Nxe6 {[%clk
0:02:29.6]} 15... fxe6 {[%clk 0:01:21]} 16. Qe2 {[%clk 0:02:29.1]} 16... Qb6
{[%clk 0:01:17.8]} 17. Nd4 {[%clk 0:02:28]} 17... Rf6 {[%clk 0:01:17.8]} 18.
Rfe1 {[%clk 0:02:26.6]} 18... Rxa2 {[%clk 0:01:16.7]} 19. Nxe6 {[%clk
0:02:25.8]} 19... Rxb2 {[%clk 0:01:15.9]} 20. Qg4 {[%clk 0:02:19.3]} 20... Qxf2+
{[%clk 0:01:04.4]} 21. Kh1 {[%clk 0:02:18.9]} 21... Rg6 {[%clk 0:01:05]} 22. Ng5
{[%clk 0:02:18.9]} 22... h6 {[%clk 0:00:50.1]} 23. Rf1 {[%clk 0:02:17.2]} 23...
Qe2 {[%clk 0:00:43.1]} 24. Qxe2 {[%clk 0:00:59]} 24... Rxe2 {[%clk 0:00:44]} 25.
Nf3 {[%clk 0:00:58]} 25... Rgxg2 {[%clk 0:00:38.4]} 26. Rb1 {[%clk 0:00:54.6]}
26... Rgf2 {[%clk 0:00:32.5]} 27. Rxf2 {[%clk 0:00:49]} 27... Rxf2 {[%clk
0:00:33.4]} 28. Nd4 {[%clk 0:00:46.8]} 28... Rd2 {[%clk 0:00:29.9]} 29. Ne6
{[%clk 0:00:33.5]} 29... Re2 {[%clk 0:00:29.1]} 30. Nc5 {[%clk 0:00:32.5]} 30...
Rc2 {[%clk 0:00:20.5]} 31. Ne6 {[%clk 0:00:29.4]} 31... Nf5 {[%clk 0:00:18.1]}
32. Rxb7 {[%clk 0:00:26.4]} 32... d4 {[%clk 0:00:18.1]} 33. Rd7 {[%clk
0:00:24.5]} 33... Ne3 {[%clk 0:00:15.2]} 34. Rxg7+ {[%clk 0:00:18.1]} 34... Kh8
{[%clk 0:00:15.7]} 35. h4 {[%clk 0:00:17.1]} 35... Rc6 {[%clk 0:00:11.5]} 36.
Rd7 {[%clk 0:00:16.7]} 36... Rc1+ {[%clk 0:00:09.4]} 37. Kh2 {[%clk 0:00:16.1]}
37... Rc2+ {[%clk 0:00:10.1]} 38. Kh3 {[%clk 0:00:15.6]} 38... Nf5 {[%clk
0:00:10.6]} 39. Nxd4 {[%clk 0:00:14.9]} 39... Rd2 {[%clk 0:00:09.4]} 40. Rd8+
{[%clk 0:00:15]} 40... Kh7 {[%clk 0:00:09.7]} 41. Ne6 {[%clk 0:00:14.9]} 41...
Rxd8 {[%clk 0:00:09.5]} 42. Nxd8 {[%clk 0:00:15.8]} 42... Kg6 {[%clk 0:00:09.1]}
43. Ne6 {[%clk 0:00:16.1]} 43... Kf6 {[%clk 0:00:09.8]} 44. Nf4 {[%clk
0:00:16.7]} 44... Ke5 {[%clk 0:00:10.4]} 45. Nh5 {[%clk 0:00:17.3]} 45... Ke4
{[%clk 0:00:10.1]} 46. Kg4 {[%clk 0:00:17.4]} 46... Ne3+ {[%clk 0:00:09.7]} 47.
Kg3 {[%clk 0:00:17.3]} 47... Nf5+ {[%clk 0:00:10.6]} 48. Kg4 {[%clk 0:00:17.8]}
48... Ne3+ {[%clk 0:00:10]} 49. Kh3 {[%clk 0:00:18.3]} 49... Nf5 {[%clk
0:00:10.9]} 50. Nf6+ {[%clk 0:00:17.9]} 50... Kf4 {[%clk 0:00:11.1]} 51. Nd5+
{[%clk 0:00:17.3]} 51... Kf3 {[%clk 0:00:11.2]} 52. Nc3 {[%clk 0:00:16.6]} 52...
Nd4 {[%clk 0:00:10.7]} 53. Nd5 {[%clk 0:00:16.1]} 53... Ne2 {[%clk 0:00:10.4]}
54. Nf6 {[%clk 0:00:16.1]} 54... Nf4+ {[%clk 0:00:10.7]} 55. Kh2 {[%clk
0:00:16.5]} 55... Ng6 {[%clk 0:00:10.6]} 56. Kh3 {[%clk 0:00:16.1]} 56... Nf4+
{[%clk 0:00:10.4]} 57. Kh2 {[%clk 0:00:16.6]} 57... Ne6 {[%clk 0:00:09.1]} 58.
Kh3 {[%clk 0:00:16.5]} 58... Kf4 {[%clk 0:00:08.9]} 59. Nh5+ {[%clk 0:00:16.3]}
59... Kf5 {[%clk 0:00:08.3]} 60. Ng3+ {[%clk 0:00:16.6]} 60... Kf4 {[%clk
0:00:08.7]} 61. Kg2 {[%clk 0:00:16.9]} 61... Nd4 {[%clk 0:00:07.8]} 62. Kf2
{[%clk 0:00:16.3]} 62... Kg4 {[%clk 0:00:07.9]} 63. h5 {[%clk 0:00:16]} 63...
Kh4 {[%clk 0:00:07.3]} 64. Kg2 {[%clk 0:00:15.4]} 64... Kg5 {[%clk 0:00:05.5]}
65. Kh3 {[%clk 0:00:15.5]} 65... Nf5 {[%clk 0:00:06]} 66. Nxf5 {[%clk
0:00:15.3]} 66... Kxf5 {[%clk 0:00:06.9]} 67. Kg3 {[%clk 0:00:15.7]} 67... Kg5
{[%clk 0:00:07]} 68. Kh3 {[%clk 0:00:16.6]} 68... Kxh5 {[%clk 0:00:07.9]} 69.
Kh2 {[%clk 0:00:17.3]} 69... Kg4 {[%clk 0:00:07.8]} 70. Kh1 {[%clk 0:00:18.2]}
70... h5 {[%clk 0:00:08.3]} 71. Kg1 {[%clk 0:00:19.1]} 71... h4 {[%clk
0:00:08.1]} 72. Kh1 {[%clk 0:00:20]} 72... h3 {[%clk 0:00:08.9]} 73. Kg1 {[%clk
0:00:20.9]} 73... Kh4 {[%clk 0:00:09.7]} 74. Kh1 {[%clk 0:00:21.8]} 74... Kg3
{[%clk 0:00:10.6]} 75. Kg1 {[%clk 0:00:22.7]} 75... h2+ {[%clk 0:00:10.7]} 76.
Kh1 {[%clk 0:00:23.6]} 76... Kh3 {[%clk 0:00:11.6]} 1/2-1/2

[Event "Early-Titled-Tuesday-Blitz-July-09-2024"]
[Site "Chess.com"]
[Date "2024.07.09"]
[Round "7"]
[White "Senn71"]
[Black "tarno17"]
[Result "0-1"]
[WhiteElo "2357"]
[BlackElo "2193"]
[TimeControl "180+1"]
[EndTime "9:21:21 PDT"]
[Termination "tarno17 won on time"]

1. e4 {[%clk 0:02:56.5]} 1... c5 {[%clk 0:02:51.9]} 2. Nf3 {[%clk 0:02:40.3]}
2... e6 {[%clk 0:02:52.2]} 3. d4 {[%clk 0:02:39.4]} 3... cxd4 {[%clk 0:02:53.1]}
4. Nxd4 {[%clk 0:02:39.4]} 4... a6 {[%clk 0:02:53.8]} 5. Bd3 {[%clk 0:02:37.9]}
5... Bc5 {[%clk 0:02:52.7]} 6. Nb3 {[%clk 0:02:37.4]} 6... Be7 {[%clk
0:02:53.5]} 7. Qg4 {[%clk 0:02:36.3]} 7... g6 {[%clk 0:02:53.2]} 8. c4 {[%clk
0:02:33.4]} 8... Nf6 {[%clk 0:02:51.3]} 9. Qe2 {[%clk 0:02:32.7]} 9... h5 {[%clk
0:02:36.5]} 10. Nc3 {[%clk 0:02:30.6]} 10... d6 {[%clk 0:02:36.6]} 11. Be3
{[%clk 0:02:23.9]} 11... Nbd7 {[%clk 0:02:36.2]} 12. O-O-O {[%clk 0:02:21.5]}
12... Qc7 {[%clk 0:02:33.1]} 13. Kb1 {[%clk 0:02:19.9]} 13... Ne5 {[%clk
0:02:23.6]} 14. f4 {[%clk 0:02:14.1]} 14... Nxd3 {[%clk 0:02:23.6]} 15. Qxd3
{[%clk 0:02:13.3]} 15... Ng4 {[%clk 0:02:20.3]} 16. Bd4 {[%clk 0:02:06.7]} 16...
e5 {[%clk 0:02:19.9]} 17. Nd5 {[%clk 0:02:01.7]} 17... Qc6 {[%clk 0:01:48.4]}
18. Nxe7 {[%clk 0:00:59.4]} 18... Kxe7 {[%clk 0:01:44.4]} 19. fxe5 {[%clk
0:00:59.5]} 19... Nxe5 {[%clk 0:01:38.7]} 20. Bxe5 {[%clk 0:00:58.7]} 20... dxe5
{[%clk 0:01:36.3]} 21. c5 {[%clk 0:00:56.7]} 21... Be6 {[%clk 0:01:30.7]} 22.
Qd6+ {[%clk 0:00:56.8]} 22... Qxd6 {[%clk 0:01:30.9]} 23. cxd6+ {[%clk
0:00:57.6]} 23... Kd7 {[%clk 0:01:09.8]} 24. Nc5+ {[%clk 0:00:57.8]} 24... Kc6
{[%clk 0:01:10.2]} 25. Nxe6 {[%clk 0:00:44.3]} 25... fxe6 {[%clk 0:01:11.1]} 26.
Rd3 {[%clk 0:00:42.8]} 26... Rad8 {[%clk 0:01:04.2]} 27. Rc1+ {[%clk 0:00:43.1]}
27... Kb6 {[%clk 0:01:03.8]} 28. Rc7 {[%clk 0:00:36.2]} 28... Rxd6 {[%clk
0:00:52.3]} 29. Rxb7+ {[%clk 0:00:36.1]} 29... Kxb7 {[%clk 0:00:52.5]} 30. Rxd6
{[%clk 0:00:36.4]} 30... Rf8 {[%clk 0:00:46.2]} 31. Kc2 {[%clk 0:00:22.2]} 31...
Rf2+ {[%clk 0:00:46]} 32. Rd2 {[%clk 0:00:22.4]} 32... Rf4 {[%clk 0:00:37.4]}
33. Kd3 {[%clk 0:00:23]} 33... Kb6 {[%clk 0:00:32.4]} 34. Rc2 {[%clk 0:00:20.5]}
34... Kb5 {[%clk 0:00:29]} 35. b3 {[%clk 0:00:19.6]} 35... Rf1 {[%clk
0:00:26.6]} 36. Ke2 {[%clk 0:00:17]} 36... Rh1 {[%clk 0:00:24.9]} 37. h3 {[%clk
0:00:17]} 37... Ra1 {[%clk 0:00:24.2]} 38. Kf3 {[%clk 0:00:15.3]} 38... Re1
{[%clk 0:00:23.6]} 39. a3 {[%clk 0:00:13.2]} 39... Rb1 {[%clk 0:00:22.9]} 40.
Rc3 {[%clk 0:00:12.6]} 40... Rb2 {[%clk 0:00:21.1]} 41. g3 {[%clk 0:00:11.6]}
41... Rb1 {[%clk 0:00:20.7]} 42. g4 {[%clk 0:00:09.9]} 42... h4 {[%clk
0:00:17.3]} 43. Rd3 {[%clk 0:00:06.2]} 43... Ra1 {[%clk 0:00:16.7]} 44. Kg2
{[%clk 0:00:04.6]} 44... Rxa3 {[%clk 0:00:15.7]} 45. Rd6 {[%clk 0:00:05]} 45...
Rxb3 {[%clk 0:00:13]} 46. Rxe6 {[%clk 0:00:05.7]} 46... Rg3+ {[%clk 0:00:12.9]}
47. Kh2 {[%clk 0:00:04.9]} 47... Kc4 {[%clk 0:00:11.7]} 48. Rxe5 {[%clk
0:00:05.5]} 48... Kd3 {[%clk 0:00:04]} 49. Re6 {[%clk 0:00:04.9]} 49... g5
{[%clk 0:00:01.8]} 50. e5 {[%clk 0:00:05.1]} 50... Kd4 {[%clk 0:00:02.1]} 51.
Rxa6 {[%clk 0:00:05.1]} 51... Kxe5 {[%clk 0:00:02.1]} 52. Ra5+ {[%clk
0:00:05.7]} 52... Kf6 {[%clk 0:00:02.3]} 53. Rf5+ {[%clk 0:00:06.4]} 53... Kg6
{[%clk 0:00:02.7]} 54. Rf2 {[%clk 0:00:07]} 54... Rc3 {[%clk 0:00:02.8]} 55. Kg2
{[%clk 0:00:06.5]} 55... Rd3 {[%clk 0:00:03.4]} 56. Kh2 {[%clk 0:00:06.8]} 56...
Rg3 {[%clk 0:00:03.9]} 57. Re2 {[%clk 0:00:05.8]} 57... Rb3 {[%clk 0:00:04.4]}
58. Rg2 {[%clk 0:00:06.5]} 58... Kf6 {[%clk 0:00:04.9]} 59. Rf2+ {[%clk
0:00:06.8]} 59... Ke5 {[%clk 0:00:05.3]} 60. Rf5+ {[%clk 0:00:07]} 60... Ke4
{[%clk 0:00:05.4]} 61. Rxg5 {[%clk 0:00:07.7]} 61... Rb2+ {[%clk 0:00:04.6]} 62.
Kg1 {[%clk 0:00:07.4]} 62... Kf3 {[%clk 0:00:04.2]} 63. Rf5+ {[%clk 0:00:05.7]}
63... Kg3 {[%clk 0:00:04.3]} 64. g5 {[%clk 0:00:04.7]} 64... Kxh3 {[%clk
0:00:02.6]} 65. g6 {[%clk 0:00:05]} 65... Rg2+ {[%clk 0:00:01.3]} 66. Kh1 {[%clk
0:00:03]} 66... Rxg6 {[%clk 0:00:02.2]} 67. Rf3+ {[%clk 0:00:02.4]} 67... Rg3
{[%clk 0:00:01.8]} 0-1

[Event "Early-Titled-Tuesday-Blitz-July-09-2024"]
[Site "Chess.com"]
[Date "2024.07.09"]
[Round "7"]
[White "amylazy"]
[Black "GoltsevDmitry2000"]
[Result "0-1"]
[WhiteElo "2510"]
[BlackElo "2743"]
[TimeControl "180+1"]
[EndTime "9:21:22 PDT"]
[Termination "GoltsevDmitry2000 won by checkmate"]

1. d4 {[%clk 0:02:50.3]} 1... e6 {[%clk 0:02:59.9]} 2. Nf3 {[%clk 0:02:47.9]}
2... Nf6 {[%clk 0:02:57.2]} 3. e3 {[%clk 0:02:46.5]} 3... b6 {[%clk 0:02:57.4]}
4. Bd3 {[%clk 0:02:45.9]} 4... Bb7 {[%clk 0:02:58]} 5. O-O {[%clk 0:02:45.9]}
5... d5 {[%clk 0:02:58.6]} 6. b3 {[%clk 0:02:44.8]} 6... Nbd7 {[%clk 0:02:58.6]}
7. Bb2 {[%clk 0:02:45.7]} 7... Bd6 {[%clk 0:02:58.8]} 8. Nbd2 {[%clk 0:02:46]}
8... O-O {[%clk 0:02:58.4]} 9. Ne5 {[%clk 0:02:46.4]} 9... c5 {[%clk 0:02:57.9]}
10. f4 {[%clk 0:02:39]} 10... Ne4 {[%clk 0:02:57]} 11. Nxe4 {[%clk 0:02:30]}
11... dxe4 {[%clk 0:02:57.9]} 12. Bc4 {[%clk 0:02:30.4]} 12... Nxe5 {[%clk
0:02:47.7]} 13. dxe5 {[%clk 0:02:26.2]} 13... Bc7 {[%clk 0:02:43.3]} 14. Qe2
{[%clk 0:02:24.5]} 14... Qe7 {[%clk 0:02:37]} 15. Rad1 {[%clk 0:02:23.9]} 15...
Rad8 {[%clk 0:02:36.1]} 16. a4 {[%clk 0:02:22.5]} 16... Rxd1 {[%clk 0:02:35]}
17. Rxd1 {[%clk 0:02:21.7]} 17... Rd8 {[%clk 0:02:35.5]} 18. Rd2 {[%clk
0:02:21.6]} 18... Rxd2 {[%clk 0:02:33.2]} 19. Qxd2 {[%clk 0:02:22.5]} 19... Qd8
{[%clk 0:02:33.4]} 20. Qxd8+ {[%clk 0:02:21.3]} 20... Bxd8 {[%clk 0:02:34.3]}
21. Kf2 {[%clk 0:02:21.7]} 21... Bd5 {[%clk 0:02:23.8]} 22. Bf1 {[%clk
0:02:20.6]} 22... f5 {[%clk 0:02:19.2]} 23. exf6 {[%clk 0:02:17.4]} 23... gxf6
{[%clk 0:02:14.7]} 24. g4 {[%clk 0:02:08.2]} 24... f5 {[%clk 0:02:14.6]} 25. Bh3
{[%clk 0:02:08.1]} 25... Bh4+ {[%clk 0:02:11.6]} 26. Ke2 {[%clk 0:02:05.7]}
26... fxg4 {[%clk 0:02:07.4]} 27. Bxg4 {[%clk 0:02:06.6]} 27... Kf7 {[%clk
0:02:00.3]} 28. Be5 {[%clk 0:02:04.8]} 28... Bd8 {[%clk 0:01:57.1]} 29. Bh5+
{[%clk 0:01:59.6]} 29... Ke7 {[%clk 0:01:56.6]} 30. c4 {[%clk 0:01:57.7]} 30...
Bc6 {[%clk 0:01:56]} 31. Kf2 {[%clk 0:01:53.4]} 31... Be8 {[%clk 0:01:49.4]} 32.
Bd1 {[%clk 0:01:41.2]} 32... Kd7 {[%clk 0:01:41.6]} 33. Bc2 {[%clk 0:01:35.2]}
33... Bg6 {[%clk 0:01:41.2]} 34. Ke2 {[%clk 0:01:17.8]} 34... Bh4 {[%clk
0:01:30.6]} 35. Kd2 {[%clk 0:01:14.9]} 35... Kc6 {[%clk 0:01:30.7]} 36. Bc3
{[%clk 0:01:10]} 36... Bf5 {[%clk 0:01:28.5]} 37. Ke2 {[%clk 0:01:09.1]} 37...
a6 {[%clk 0:01:07.4]} 38. Be1 {[%clk 0:01:08.8]} 38... Bf6 {[%clk 0:01:02.9]}
39. Kd2 {[%clk 0:00:59.4]} 39... b5 {[%clk 0:01:02.4]} 40. Bd1 {[%clk
0:00:50.7]} 40... Kb6 {[%clk 0:00:51.8]} 41. Kc2 {[%clk 0:00:47.5]} 41... Bh3
{[%clk 0:00:32.6]} 42. axb5 {[%clk 0:00:45]} 42... axb5 {[%clk 0:00:31.9]} 43.
cxb5 {[%clk 0:00:45.9]} 43... Kxb5 {[%clk 0:00:32.8]} 44. Be2+ {[%clk
0:00:46.4]} 44... Kc6 {[%clk 0:00:31.3]} 45. Bc4 {[%clk 0:00:46.7]} 45... Kd6
{[%clk 0:00:15.9]} 46. Bc3 {[%clk 0:00:46.2]} 46... Bh4 {[%clk 0:00:12.4]} 47.
Be5+ {[%clk 0:00:46.1]} 47... Kd7 {[%clk 0:00:12.7]} 48. Kd2 {[%clk 0:00:43.8]}
48... Bf2 {[%clk 0:00:12.7]} 49. Bf6 {[%clk 0:00:38.9]} 49... Bg1 {[%clk
0:00:11.3]} 50. Bb5+ {[%clk 0:00:27.2]} 50... Kc8 {[%clk 0:00:08.8]} 51. Be7
{[%clk 0:00:25]} 51... Bxh2 {[%clk 0:00:05.9]} 52. Bxc5 {[%clk 0:00:25]} 52...
Bg3 {[%clk 0:00:05.5]} 53. Be7 {[%clk 0:00:23.9]} 53... h5 {[%clk 0:00:05.5]}
54. Be2 {[%clk 0:00:16]} 54... h4 {[%clk 0:00:05.5]} 55. Bc4 {[%clk 0:00:15.6]}
55... Kd7 {[%clk 0:00:05.1]} 56. Bg5 {[%clk 0:00:16.1]} 56... Bg2 {[%clk
0:00:05.3]} 57. Bxh4 {[%clk 0:00:08.2]} 57... Bxh4 {[%clk 0:00:06.2]} 58. Kc3
{[%clk 0:00:07.2]} 58... Bf6+ {[%clk 0:00:06]} 59. Kb4 {[%clk 0:00:07.4]} 59...
Bf3 {[%clk 0:00:05.7]} 60. Kc5 {[%clk 0:00:07]} 60... Bc3 {[%clk 0:00:06.1]} 61.
b4 {[%clk 0:00:07.2]} 61... Bd2 {[%clk 0:00:06.1]} 62. Bb5+ {[%clk 0:00:07.5]}
62... Ke7 {[%clk 0:00:05.2]} 63. Kd4 {[%clk 0:00:07.1]} 63... Bxb4 {[%clk
0:00:05.5]} 64. Bc4 {[%clk 0:00:06.5]} 64... Ba5 {[%clk 0:00:05.9]} 65. Bb3
{[%clk 0:00:04.4]} 65... Bb6+ {[%clk 0:00:06.1]} 66. Ke5 {[%clk 0:00:04.9]}
66... Bxe3 {[%clk 0:00:06.6]} 67. Bc2 {[%clk 0:00:05.8]} 67... Bd2 {[%clk
0:00:06.3]} 68. Bxe4 {[%clk 0:00:04.9]} 68... Bc3# {[%clk 0:00:05.4]} 0-1

[Event "Early-Titled-Tuesday-Blitz-July-09-2024"]
[Site "Chess.com"]
[Date "2024.07.09"]
[Round "7"]
[White "SujanaLohani"]
[Black "VacheH009"]
[Result "0-1"]
[WhiteElo "2364"]
[BlackElo "2522"]
[TimeControl "180+1"]
[EndTime "9:21:23 PDT"]
[Termination "VacheH009 won by resignation"]

1. e4 {[%clk 0:03:00.9]} 1... c5 {[%clk 0:02:57.7]} 2. Nf3 {[%clk 0:03:00.4]}
2... d6 {[%clk 0:02:55.3]} 3. d4 {[%clk 0:02:59.8]} 3... cxd4 {[%clk 0:02:54]}
4. Nxd4 {[%clk 0:03:00.4]} 4... Nf6 {[%clk 0:02:52.6]} 5. Nc3 {[%clk 0:03:00.7]}
5... g6 {[%clk 0:02:52.2]} 6. Be3 {[%clk 0:02:59.4]} 6... Bg7 {[%clk 0:02:50.3]}
7. Qd2 {[%clk 0:02:58.1]} 7... Ng4 {[%clk 0:02:47.4]} 8. Bg5 {[%clk 0:02:57.7]}
8... h6 {[%clk 0:02:46.3]} 9. Bh4 {[%clk 0:02:57.3]} 9... Nc6 {[%clk 0:02:45]}
10. Nb3 {[%clk 0:02:53.5]} 10... Be6 {[%clk 0:02:35.5]} 11. O-O-O {[%clk
0:02:49.2]} 11... Qd7 {[%clk 0:02:28.1]} 12. h3 {[%clk 0:02:31.9]} 12... Nge5
{[%clk 0:02:24.1]} 13. Nd5 {[%clk 0:02:25.7]} 13... g5 {[%clk 0:02:20.2]} 14.
Bg3 {[%clk 0:02:24.9]} 14... Rc8 {[%clk 0:02:11]} 15. Bb5 {[%clk 0:02:18.8]}
15... Qd8 {[%clk 0:02:05.2]} 16. f4 {[%clk 0:02:11]} 16... gxf4 {[%clk
0:02:01.2]} 17. Nxf4 {[%clk 0:02:11.1]} 17... Bc4 {[%clk 0:01:56.4]} 18. Nh5
{[%clk 0:01:59.9]} 18... Rg8 {[%clk 0:01:42]} 19. Bxc4 {[%clk 0:01:47.6]} 19...
Nxc4 {[%clk 0:01:39]} 20. Nxg7+ {[%clk 0:01:43.1]} 20... Rxg7 {[%clk 0:01:39.9]}
21. Qf4 {[%clk 0:01:20.2]} 21... N4e5 {[%clk 0:01:26.8]} 22. Kb1 {[%clk
0:01:09.6]} 22... Qb6 {[%clk 0:01:22.3]} 23. Bf2 {[%clk 0:01:06]} 23... Qb5
{[%clk 0:01:04]} 24. g4 {[%clk 0:01:02.2]} 24... Rg6 {[%clk 0:00:59]} 25. Rd5
{[%clk 0:00:54.8]} 25... Qe2 {[%clk 0:00:56.1]} 26. Re1 {[%clk 0:00:48]} 26...
Qf3 {[%clk 0:00:48.2]} 27. Qf5 {[%clk 0:00:41.6]} 27... Rd8 {[%clk 0:00:36.3]}
28. Qxf3 {[%clk 0:00:19.9]} 28... Nxf3 {[%clk 0:00:37.2]} 29. Re3 {[%clk
0:00:19.8]} 29... Nfe5 {[%clk 0:00:35.9]} 30. Bg3 {[%clk 0:00:19.3]} 30... h5
{[%clk 0:00:31.7]} 31. Bxe5 {[%clk 0:00:11.7]} 31... Nxe5 {[%clk 0:00:32.6]} 32.
gxh5 {[%clk 0:00:08.7]} 32... Rh6 {[%clk 0:00:31.6]} 33. Nd4 {[%clk 0:00:05.9]}
33... Rxh5 {[%clk 0:00:30.1]} 34. b3 {[%clk 0:00:05.7]} 34... Kd7 {[%clk
0:00:29.7]} 35. Nf5 {[%clk 0:00:05.1]} 35... Rdh8 {[%clk 0:00:29.1]} 36. Rb5
{[%clk 0:00:05.1]} 36... b6 {[%clk 0:00:28.7]} 37. a4 {[%clk 0:00:05.2]} 37...
Rxh3 {[%clk 0:00:28.5]} 38. Rxh3 {[%clk 0:00:05.6]} 38... Rxh3 {[%clk
0:00:29.1]} 39. a5 {[%clk 0:00:06]} 39... Kc6 {[%clk 0:00:19.3]} 40. c4 {[%clk
0:00:03.8]} 40... e6 {[%clk 0:00:17.6]} 41. Ne7+ {[%clk 0:00:02.4]} 41... Kc7
{[%clk 0:00:16.4]} 42. axb6+ {[%clk 0:00:02.3]} 42... axb6 {[%clk 0:00:17.3]}
43. Ng8 {[%clk 0:00:02.5]} 43... Nc6 {[%clk 0:00:12.5]} 44. Nf6 {[%clk
0:00:02.6]} 44... Nd4 {[%clk 0:00:12.9]} 45. Rg5 {[%clk 0:00:01.9]} 45... Rxb3+
{[%clk 0:00:12.9]} 46. Ka2 {[%clk 0:00:02.6]} 46... Rc3 {[%clk 0:00:12.6]} 47.
Rg7 {[%clk 0:00:02.9]} 47... Rxc4 {[%clk 0:00:11.2]} 48. Rxf7+ {[%clk
0:00:03.4]} 48... Kc6 {[%clk 0:00:11.8]} 49. Ne8 {[%clk 0:00:03.7]} 49... Nb5
{[%clk 0:00:09.3]} 50. Rf6 {[%clk 0:00:02.9]} 50... Rxe4 {[%clk 0:00:08.6]} 51.
Rf8 {[%clk 0:00:02.3]} 51... Kd7 {[%clk 0:00:08]} 52. Nf6+ {[%clk 0:00:02.3]}
52... Ke7 {[%clk 0:00:08.6]} 53. Nxe4 {[%clk 0:00:01.5]} 53... Kxf8 {[%clk
0:00:09.2]} 54. Kb3 {[%clk 0:00:02.3]} 54... Ke7 {[%clk 0:00:09.3]} 55. Kb4
{[%clk 0:00:02.5]} 55... Nc7 {[%clk 0:00:09.6]} 56. Nc3 {[%clk 0:00:02]} 56...
d5 {[%clk 0:00:09.8]} 57. Kb3 {[%clk 0:00:01.8]} 57... Kd6 {[%clk 0:00:10.2]}
58. Ne2 {[%clk 0:00:02.1]} 58... e5 {[%clk 0:00:10.3]} 59. Kb4 {[%clk 0:00:03]}
59... e4 {[%clk 0:00:10.3]} 60. Kc3 {[%clk 0:00:03.9]} 60... Kc5 {[%clk
0:00:10.2]} 61. Nd4 {[%clk 0:00:03.5]} 61... Nb5+ {[%clk 0:00:10.4]} 62. Nxb5
{[%clk 0:00:04]} 62... Kxb5 {[%clk 0:00:11.3]} 63. Kd4 {[%clk 0:00:04.6]} 63...
Kc6 {[%clk 0:00:11.8]} 64. Ke3 {[%clk 0:00:05.5]} 64... Kc5 {[%clk 0:00:12.7]}
65. Kf4 {[%clk 0:00:04.4]} 65... b5 {[%clk 0:00:13.6]} 66. Ke3 {[%clk
0:00:05.3]} 66... b4 {[%clk 0:00:14.5]} 67. Kd2 {[%clk 0:00:05.8]} 67... Kd4
{[%clk 0:00:14.6]} 68. Kc2 {[%clk 0:00:05.2]} 68... Ke3 {[%clk 0:00:14.4]} 69.
Kb3 {[%clk 0:00:06.1]} 69... d4 {[%clk 0:00:15]} 70. Kxb4 {[%clk 0:00:06.5]}
70... d3 {[%clk 0:00:15.9]} 0-1